bitfinex/quotes_ETHUSD_20240714
["timestamp","ask_amount","ask_price","bid_price","bid_amount"]
[1720965169240,0.32766235,3193.3,3193.2,3.29731]
[1720965171090,1.96324886,3193.3,3193.2,3.29731]
[1720965171267,0.32766235,3193.3,3193.2,3.29731]
[1720965172440,0.32766235,3193.3,3193.2,3.877589]
[1720965173069,1.96348073,3193.3,3193.2,3.877589]
[1720965173267,2.45504414,3193.3,3193.2,3.877589]
[1720965174371,0.81922576,3193.3,3193.2,3.877589]
[1720965175268,0.81922576,3193.3,3193.2,3.085589]
[1720965175583,0.81922576,3193.3,3193.2,3.877589]
[1720965176179,0.81922576,3193.3,3193.2,8.819809]
[1720965177359,1.63738665,3193.6,3193.5,2.50506]
[1720965177566,1.63738665,3193.9,3193.8,5.0097]
[1720965177906,2.70596358,3194.8,3194.0,7.44628]
[1720965177907,1.63738665,3194.1,3194.0,7.44628]
[1720965178189,0.49146342,3194.6,3194.4,2.50432]
[1720965178190,1.96517496,3194.6,3194.4,2.50432]
[1720965178354,2.4389,3194.8,3194.3,2.50438]
[1720965178355,1.96517496,3194.7,3194.5,3.2963]
[1720965178553,1.96517496,3194.7,3194.6,3.29622]
[1720965178864,2.93031965,3195.1,3194.6,3.29622]
[1720965178865,1.96517496,3194.8,3194.7,2.50414]
[1720965179059,1.96517496,3194.8,3194.0,3.260728]
[1720965179060,2.29270412,3195.0,3194.4,2.50437]
[1720965179263,1.96362589,3194.8,3194.7,0.792]
[1720965179472,0.47316041,3194.9,3194.7,0.792]
[1720965180503,1.96387454,3194.8,3194.7,0.792]
[1720965180807,1.96385147,3194.8,3194.7,0.792]
[1720965181201,2.4389,3195.1,3194.7,0.792]
[1720965181369,1.96386396,3194.8,3194.7,0.792]
[1720965182071,1.96386396,3194.9,3194.7,0.792]
[1720965182279,1.96386396,3194.9,3194.8,0.792]
[1720965183269,1.96200362,3194.9,3194.8,0.792]
[1720965183488,2.4389,3195.1,3194.8,0.792]
[1720965183489,1.96200362,3195.0,3194.8,0.792]
[1720965183690,2.4389,3195.1,3194.8,0.792]
[1720965183990,1.9613161,3195.0,3194.8,0.792]
[1720965186057,5.17251977,3195.1,3194.8,0.792]
[1720965186262,4.4002161,3195.1,3194.8,0.792]
[1720965186598,4.4002161,3195.1,3195.0,0.792]
[1720965186756,2.4389,3195.1,3195.0,0.792]
[1720965187111,1.95976493,3195.2,3195.0,0.792]
[1720965187269,0.49137244,3195.3,3195.0,0.792]
[1720965187270,4.39866493,3195.1,3195.0,0.792]
[1720965188177,5.13803667,3195.1,3195.0,0.792]
[1720965188582,5.13803667,3195.1,3194.4,2.50435]
[1720965188583,5.13803667,3195.1,3194.8,0.792]
[1720965189787,1.63231449,3194.9,3194.8,0.792]
[1720965189989,5.13803667,3195.1,3194.8,0.792]
[1720965190197,7.64188667,3195.1,3194.8,0.792]
[1720965190497,0.76418867,3195.0,3194.8,0.792]
[1720965190682,1.63209266,3194.9,3194.8,0.792]
[1720965191474,1.63209266,3195.0,3194.8,0.792]
[1720965192591,1.30535299,3194.9,3194.8,0.792]
[1720965193696,1.63209266,3195.0,3194.8,0.792]
[1720965193697,1.30535299,3195.0,3194.8,0.792]
[1720965194059,1.30535299,3194.9,3194.8,0.792]
[1720965194597,1.30535299,3195.0,3194.8,0.792]
[1720965194811,1.30535299,3195.0,3194.9,0.792]
[1720965194969,4.07039697,3195.1,3194.9,0.792]
[1720965195172,1.3050849,3195.0,3194.9,0.792]
[1720965195477,1.30494474,3195.0,3194.9,0.792]
[1720965196185,1.30492163,3195.0,3194.9,0.792]
[1720965203684,2.4248,3194.9,3194.3,9.7944]
[1720965203890,2.4248,3194.9,3194.8,0.792]
[1720965204269,3.72972163,3194.9,3194.8,0.792]
[1720965204696,2.4248,3194.9,3194.8,0.792]
[1720965205206,3.72972163,3194.9,3194.8,0.792]
[1720965205520,4.05760053,3194.9,3194.8,0.792]
[1720965206803,4.05743784,3194.9,3194.8,0.792]
[1720965210026,1.63263784,3194.9,3194.8,0.792]
[1720965210993,1.63263784,3194.9,3194.8,3.29606]
[1720965212230,0.3278789,3194.9,3194.8,3.29606]
[1720965213824,0.3278789,3194.9,3194.4,2.50435]
[1720965213825,2.3704,3194.8,3194.4,2.50435]
[1720965213997,3.67719656,3194.8,3194.7,0.792]
[1720965214198,4.0029998,3194.8,3194.7,0.792]
[1720965214594,3.05388087,3194.8,3194.7,0.792]
[1720965214794,3.05388087,3194.8,3194.3,7.29]
[1720965214795,3.05388087,3194.8,3194.6,0.792]
[1720965216150,5.01300064,3194.8,3194.6,0.792]
[1720965216732,5.01573195,3194.8,3194.6,0.792]
[1720965217022,7.51982195,3194.8,3194.6,0.767]
[1720965217223,2.74662117,3194.7,3194.6,0.767]
[1720965218035,0.78477009,3194.7,3194.6,0.767]
[1720965218344,2.74662117,3194.7,3194.6,0.767]
[1720965219197,3.23805103,3194.7,3194.2,19.47]
[1720965219498,0.49142986,3194.7,3194.6,0.792]
[1720965219808,2.45512838,3194.7,3194.6,0.792]
[1720965220002,0.49142986,3194.7,3194.6,0.792]
[1720965222224,2.7825334,3194.7,3194.6,0.792]
[1720965223231,0.49142986,3194.7,3194.6,0.792]
[1720965224900,2.78723,3194.7,3194.6,0.792]
[1720965226823,2.78712275,3194.7,3194.6,0.792]
[1720965227136,2.78712239,3194.7,3194.6,0.792]
[1720965229124,0.49142986,3194.7,3194.6,0.792]
[1720965229445,0.49142986,3194.7,3194.6,3.776962]
[1720965230339,0.49142986,3194.7,3194.6,6.281182]
[1720965232452,2.45876488,3194.7,3194.6,6.281182]
[1720965234042,2.45876488,3194.7,3194.6,8.785402]
[1720965236638,2.45844002,3194.7,3194.6,8.785402]
[1720965237475,0.49142986,3194.7,3194.6,2.4049]
[1720965237652,0.49142986,3194.7,3194.6,3.1969]
[1720965238043,0.49142986,3194.7,3194.6,0.792]
[1720965238865,2.45839991,3194.7,3194.6,0.792]
[1720965239973,2.45818507,3194.7,3194.6,0.792]
[1720965241249,2.45818507,3194.7,3194.1,3.0]
[1720965241250,5.36848401,3194.7,3194.1,2.50455]
[1720965241452,1.96733327,3194.4,3194.2,2.50453]
[1720965241655,1.96733327,3194.3,3194.2,2.50453]
[1720965241839,1.96733327,3194.3,3194.2,3.29653]
[1720965242046,2.29525738,3194.3,3194.2,3.29653]
[1720965242575,2.29505975,3194.3,3194.2,3.29653]
[1720965245553,0.32792411,3194.3,3194.2,3.29653]
[1720965245786,2.29502882,3194.3,3194.2,3.29653]
[1720965248405,2.29502882,3194.3,3194.2,0.792]
[1720965248573,4.73422882,3194.3,3194.2,0.792]
[1720965249069,4.73388192,3194.3,3194.2,0.792]
[1720965249525,2.76712411,3194.3,3194.2,0.792]
[1720965249972,2.2942861,3194.3,3194.2,0.792]
[1720965250374,0.32792411,3194.3,3194.2,1.12166]
[1720965250800,0.32792411,3194.3,3194.2,3.62619]
[1720965253896,0.32792411,3194.3,3194.2,6.13072]
[1720965254815,0.32792411,3194.3,3194.2,8.40912]
[1720965255235,1.96666551,3194.3,3194.2,8.40912]
[1720965255531,1.63899697,3194.3,3194.2,13.91365]
[1720965255690,1.63897247,3194.3,3194.2,13.91365]
[1720965257557,1.22099851,3194.3,3194.2,15.79765]
[1720965257737,0.71349851,3194.3,3194.2,16.34765]
[1720965257880,1.63881045,3194.5,3194.4,11.67554]
[1720965258217,1.63881045,3194.5,3194.4,14.352713]
[1720965258797,0.49142986,3194.7,3194.6,5.00844]
[1720965259132,0.49142986,3194.7,3194.6,5.80044]
[1720965264221,2.12975392,3194.7,3194.6,13.93429]
[1720965264525,2.12975392,3194.7,3194.6,14.39217609]
[1720965265490,2.12965577,3194.7,3194.6,14.39217609]
[1720965265720,2.12965577,3194.7,3194.6,10.10588409]
[1720965266332,2.12965577,3194.7,3194.6,5.80044]
[1720965268790,0.49142986,3194.7,3194.6,5.80044]
[1720965269020,2.12936564,3194.7,3194.6,5.80044]
[1720965269316,2.12934563,3194.7,3194.6,5.80044]
[1720965271287,2.12930127,3194.7,3194.6,5.80044]
[1720965272012,0.49142986,3194.7,3194.6,5.80044]
[1720965272182,2.12927922,3194.7,3194.6,6.380484]
[1720965275420,0.49142986,3194.7,3194.6,6.380484]
[1720965275724,2.12908409,3194.7,3194.6,6.380484]
[1720965278841,2.12891744,3194.7,3194.6,6.380484]
[1720965279696,2.12890535,3194.7,3194.6,6.380484]
[1720965282207,2.12883294,3194.7,3194.6,6.380484]
[1720965285241,0.49142986,3194.7,3194.6,6.380484]
[1720965287957,0.49142986,3194.7,3194.6,5.80044]
[1720965288242,2.12871803,3194.7,3194.6,5.80044]
[1720965288846,2.12849097,3194.7,3194.6,5.80044]
[1720965289157,2.12849097,3194.7,3194.6,3.29622]
[1720965289313,0.49142986,3194.7,3194.6,3.29622]
[1720965290337,2.12859736,3194.7,3194.6,3.29622]
[1720965291836,2.12859736,3194.7,3194.6,5.80044]
[1720965292113,2.12895178,3194.7,3194.6,6.380484]
[1720965292319,0.49142986,3194.7,3194.6,6.380484]
[1720965293333,2.12910018,3194.7,3194.6,6.380484]
[1720965294653,0.49142986,3194.7,3194.6,6.380484]
[1720965298345,0.49142986,3194.7,3194.6,5.80044]
[1720965300438,2.45793938,3194.7,3194.6,5.80044]
[1720965301166,2.45927652,3194.7,3194.6,5.80044]
[1720965303149,0.49142986,3194.7,3194.6,5.80044]
[1720965303338,2.45967186,3194.7,3194.6,5.80044]
[1720965304444,2.45978537,3194.7,3194.6,5.80044]
[1720965305832,2.45978537,3194.7,3194.6,5.77544]
[1720965307567,0.49142986,3194.7,3194.6,5.77544]
[1720965307866,2.4601341,3194.7,3194.6,5.77544]
[1720965310190,0.49142986,3194.7,3194.6,2.47922]
[1720965310369,0.49142986,3194.7,3194.6,3.27122]
[1720965318373,0.49142986,3194.7,3194.6,5.77544]
[1720965318583,0.49142986,3194.7,3194.6,3.27122]
[1720965330004,0.49142986,3194.7,3194.6,5.77544]
[1720965330963,0.49142986,3194.7,3194.6,3.27122]
[1720965332811,0.49142986,3194.7,3194.6,5.77544]
[1720965346102,2.46123927,3194.7,3194.6,8.763384]
[1720965346506,1.96980941,3194.7,3194.6,8.763384]
[1720965347416,0.49133089,3195.1,3195.0,2.50391]
[1720965347999,2.80123089,3195.1,3194.9,2.50397]
[1720965348299,2.3099,3194.9,3194.7,2.50412]
[1720965348500,2.3099,3194.9,3194.8,0.792]
[1720965354559,2.81985071,3194.9,3194.3,19.47]
[1720965354702,2.29805825,3194.6,3194.5,0.792]
[1720965354907,4.60345825,3194.6,3194.5,0.792]
[1720965355367,5.07163006,3194.6,3194.5,0.792]
[1720965355764,4.60345825,3194.6,3194.5,0.792]
[1720965357292,4.60298165,3194.6,3194.1,21.9746]
[1720965357498,1.96937058,3194.3,3194.1,21.9746]
[1720965357641,1.96937058,3194.3,3194.2,0.792]
[1720965358556,1.96937058,3194.4,3194.2,0.792]
[1720965358868,1.96937058,3194.4,3194.3,0.792]
[1720965360540,1.96874051,3194.4,3194.3,0.792]
[1720965362893,1.96842101,3194.4,3194.3,0.792]
[1720965365092,1.96822499,3194.4,3194.3,0.792]
[1720965366154,2.3054,3194.6,3194.3,0.792]
[1720965366491,2.3054,3194.6,3194.5,0.792]
[1720965366706,3.26638194,3194.6,3194.5,0.792]
[1720965367626,2.2961194,3194.7,3194.5,0.792]
[1720965367825,2.2961194,3194.8,3194.5,0.792]
[1720965367974,2.2961194,3194.8,3194.7,0.792]
[1720965369589,2.62373227,3194.9,3194.7,0.792]
[1720965370805,2.62373227,3194.9,3194.7,3.29613]
[1720965372806,2.62310082,3194.9,3194.7,3.29613]
[1720965372975,2.62310082,3194.9,3194.7,0.792]
[1720965373982,2.3867,3194.8,3194.7,0.792]
[1720965376395,3.13807208,3194.8,3194.7,0.792]
[1720965382851,2.3867,3194.8,3194.7,0.792]
[1720965383033,2.62264802,3194.9,3194.7,0.792]
[1720965385241,2.62264802,3194.9,3194.7,3.29614]
[1720965385923,0.32796089,3194.9,3194.7,3.29614]
[1720965386123,2.62280073,3194.9,3194.7,3.29614]
[1720965387555,2.62280073,3194.9,3194.7,0.792]
[1720965389342,2.62288052,3194.9,3194.7,0.792]
[1720965391269,2.3957,3194.7,3193.7,2.50489]
[1720965391555,2.29491963,3193.9,3193.4,7.29]
[1720965391755,0.49136742,3193.6,3193.1,2.50539]
[1720965391922,2.29491963,3193.7,3193.5,0.792]
[1720965392324,2.83288769,3193.8,3193.5,0.792]
[1720965392526,5.12563526,3193.8,3193.5,0.792]
[1720965393235,1.96418091,3193.6,3193.5,0.792]
[1720965393436,5.12563526,3193.8,3193.5,0.792]
[1720965393644,1.96420384,3193.6,3193.5,0.792]
[1720965394958,2.50511,3193.5,3193.4,0.792]
[1720965396258,2.50516,3193.4,3192.7,3.0]
[1720965396459,2.3957,3193.5,3192.5,0.025]
[1720965396460,1.30815567,3192.8,3192.5,0.025]
[1720965396647,1.30815567,3192.8,3192.6,0.792]
[1720965396648,1.63519459,3192.8,3192.6,0.792]
[1720965396852,3.15931046,3192.8,3192.6,0.792]
[1720965397160,5.12235368,3192.8,3192.6,0.792]
[1720965397336,1.63353984,3192.7,3192.5,0.025]
[1720965397538,4.13932984,3192.6,3192.5,0.025]
[1720965397730,4.54715429,3192.6,3192.5,0.025]
[1720965397925,5.23948669,3192.6,3192.5,0.025]
[1720965398231,3.27644347,3192.6,3192.5,0.025]
[1720965399461,4.90705835,3192.6,3192.5,0.025]
[1720965399662,2.40126835,3192.6,3192.5,0.025]
[1720965400163,0.77065347,3192.6,3192.5,0.025]
[1720965400481,2.50573,3192.7,3192.5,0.025]
[1720965400828,2.50541,3193.1,3192.6,0.792]
[1720965401158,2.50541,3193.1,3192.5,0.025]
[1720965401159,2.50541,3193.1,3192.9,0.792]
[1720965401559,2.3957,3193.3,3192.9,0.792]
[1720965402060,2.50533,3193.2,3192.9,0.792]
[1720965402260,2.50533,3193.2,3192.5,2.53087]
[1720965402453,2.50533,3193.2,3192.6,0.443387]
[1720965402649,2.50518,3193.4,3192.6,0.443387]
[1720965402970,2.50525,3193.3,3192.6,0.443387]
[1720965403566,2.50525,3193.3,3192.6,2.949177]
[1720965405045,2.5051,3193.5,3192.7,2.50564]
[1720965405354,2.5051,3193.5,3192.7,0.5479817]
[1720965405547,5.63874183,3193.6,3192.8,2.50562]
[1720965406053,3.13373183,3193.6,3192.7,0.5479817]
[1720965406258,2.3957,3193.6,3192.9,2.50554]
[1720965409491,2.3957,3193.6,3192.7,2.5057]
[1720965410755,0.32802769,3193.8,3192.9,2.50552]
[1720965410958,0.32802769,3193.8,3193.1,2.50534]
[1720965411349,0.32802769,3193.8,3193.2,2.50531]
[1720965412162,0.32802769,3193.8,3193.0,2.50547]
[1720965412460,0.32802769,3193.8,3193.1,0.979547]
[1720965412658,2.83288769,3193.8,3193.1,0.979547]
[1720965414295,2.83288769,3193.8,3193.0,2.50547]
[1720965414991,2.50507,3193.6,3192.9,7.29]
[1720965415151,2.50524,3193.4,3192.9,7.29]
[1720965415351,2.50526,3193.3,3192.9,7.29]
[1720965415883,2.83341127,3193.2,3192.9,7.29]
[1720965417078,2.4499,3193.1,3192.9,7.29]
[1720965417587,5.48364113,3193.1,3192.9,7.29]
[1720965417912,5.48364113,3193.1,3192.9,7.24584819]
[1720965418111,5.48364113,3193.1,3192.7,19.47]
[1720965418670,5.97531623,3193.1,3192.7,19.47]
[1720965419313,5.97531623,3193.1,3192.5,0.025]
[1720965419314,2.50554,3193.0,3192.5,0.025]
[1720965419481,2.50564,3192.8,3192.5,0.025]
[1720965420303,2.50579,3192.6,3192.5,0.025]
[1720965420672,2.50573,3192.7,3192.5,0.025]
[1720965421914,2.50573,3192.7,3192.0,2.50621]
[1720965423292,5.01118,3192.9,3192.0,2.50621]
[1720965423480,0.58920528,3192.8,3192.0,2.50621]
[1720965423878,3.09485528,3192.8,3192.0,2.50621]
[1720965424214,0.58920528,3192.8,3192.2,2.50603]
[1720965424786,0.58920528,3192.8,3192.3,2.50602]
[1720965425308,0.58920528,3192.8,3192.4,2.50593]
[1720965425519,5.4470351,3193.1,3192.4,2.50593]
[1720965426921,0.4916751,3193.1,3192.6,2.50576]
[1720965427814,0.4916751,3193.1,3192.7,2.5057]
[1720965428009,0.4916751,3193.1,3192.8,2.50563]
[1720965432539,1.63168738,3193.2,3192.8,2.46980932]
[1720965433235,1.30360611,3193.1,3192.6,2.50576]
[1720965434238,1.30360611,3192.9,3192.6,2.50576]
[1720965434545,1.30360611,3192.9,3192.8,0.793]
[1720965434732,1.30556611,3192.9,3192.8,0.793]
[1720965434927,1.30556611,3193.0,3192.8,0.793]
[1720965435117,1.30556611,3193.0,3192.4,2.50592]
[1720965435319,1.30556611,3192.8,3192.7,0.793]
[1720965435721,1.30556611,3192.8,3192.3,26.71584819]
[1720965435947,1.30556611,3192.7,3192.2,2.66204]
[1720965436113,1.30556611,3192.7,3192.6,0.793]
[1720965436314,1.63195764,3192.8,3192.6,0.793]
[1720965436629,2.43570112,3192.8,3192.6,0.793]
[1720965437326,0.80374348,3192.8,3192.6,0.793]
[1720965437849,0.32809101,3192.8,3192.6,0.793]
[1720965438108,1.63593399,3192.7,3192.6,0.793]
[1720965439673,0.32809101,3192.8,3192.6,3.29877]
[1720965439954,1.63654366,3192.7,3192.6,3.29877]
[1720965440361,0.32809101,3192.8,3192.6,3.29877]
[1720965441449,2.29276889,3192.8,3192.6,3.29877]
[1720965441649,0.32809101,3192.8,3192.6,3.29877]
[1720965441873,2.29276889,3192.8,3192.6,3.29877]
[1720965444016,1.96467788,3192.7,3192.6,0.793]
[1720965445261,0.32809101,3192.8,3192.6,0.793]
[1720965445455,1.96618094,3192.7,3192.6,0.793]
[1720965446742,2.76079101,3192.8,3192.6,0.793]
[1720965446942,0.2760791,3192.7,3192.6,0.793]
[1720965447521,0.2760791,3192.7,3192.2,2.66207]
[1720965447836,2.56994056,3192.7,3192.4,0.793]
[1720965449017,2.56994056,3192.7,3192.2,0.156]
[1720965449220,1.96613625,3192.4,3192.2,0.156]
[1720965449421,1.96613625,3192.4,3192.3,0.793]
[1720965451178,1.96603137,3192.4,3192.3,0.793]
[1720965454347,1.96587827,3192.4,3192.3,0.793]
[1720965454548,1.96587827,3192.4,3192.3,3.29903]
[1720965454963,1.96587827,3192.5,3192.3,3.29903]
[1720965455152,1.96587827,3192.5,3192.4,0.793]
[1720965457199,2.29352465,3192.7,3192.4,0.793]
[1720965457398,2.29352465,3192.7,3192.6,0.793]
[1720965457687,2.29395122,3192.7,3192.6,0.793]
[1720965458262,2.62204223,3192.8,3192.6,3.29879]
[1720965459391,2.88424645,3192.8,3192.6,3.29879]
[1720965461019,0.59029523,3192.8,3192.6,3.29879]
[1720965461326,2.29498093,3192.7,3192.6,3.29879]
[1720965461626,2.29498093,3192.7,3192.6,0.793]
[1720965462367,2.62307194,3192.8,3192.6,0.793]
[1720965462574,2.29498093,3192.7,3192.6,0.793]
[1720965464387,2.29566565,3192.7,3192.6,0.793]
[1720965465469,0.32809101,3192.8,3192.7,2.50571]
[1720965465669,2.62376202,3192.8,3192.7,2.50571]
[1720965467123,2.62376202,3192.8,3192.6,0.793]
[1720965467286,2.88613822,3192.8,3192.6,0.793]
[1720965467909,2.29567101,3192.7,3192.6,0.793]
[1720965471185,0.59046721,3192.8,3192.6,0.793]
[1720965471391,2.29596512,3192.7,3192.6,0.793]
[1720965474516,0.59046721,3192.8,3192.6,0.793]
[1720965474698,2.29604805,3192.7,3192.6,0.793]
[1720965475997,3.08058558,3192.7,3192.6,0.793]
[1720965477808,3.08074522,3192.7,3192.6,0.793]
[1720965480517,2.29620769,3192.7,3192.6,0.793]
[1720965480921,2.29596717,3192.7,3192.6,0.793]
[1720965483733,2.29605041,3192.7,3192.6,0.793]
[1720965485511,0.32809101,3192.8,3192.6,0.793]
[1720965486117,2.29621581,3192.7,3192.6,0.793]
[1720965486513,2.29629354,3192.7,3192.6,0.793]
[1720965486929,2.29628407,3192.7,3192.6,0.793]
[1720965488521,0.32809101,3192.8,3192.6,0.793]
[1720965488833,0.88269667,3192.8,3192.6,0.793]
[1720965494011,1.37439606,3192.8,3192.6,0.793]
[1720965500334,3.53363171,3192.8,3192.6,0.793]
[1720965500638,3.53363171,3192.8,3192.5,0.818]
[1720965503525,3.53390161,3192.8,3192.5,0.818]
[1720965504040,3.53388539,3192.8,3192.5,0.818]
[1720965504525,2.29768011,3192.6,3192.5,0.818]
[1720965505358,0.8197904,3192.8,3192.5,0.818]
[1720965505565,2.29763528,3192.6,3192.5,0.818]
[1720965505783,3.53388539,3192.8,3192.5,0.818]
[1720965506333,2.29762466,3192.6,3192.5,0.818]
[1720965506729,3.53388539,3192.8,3192.5,0.818]
[1720965506936,3.53391575,3192.8,3192.5,0.818]
[1720965507161,4.38841033,3192.8,3192.5,0.818]
[1720965510187,4.38822408,3192.8,3192.5,0.818]
[1720965510767,4.38822408,3192.8,3192.7,0.793]
[1720965511084,3.5337295,3192.8,3192.7,0.793]
[1720965513562,3.53373217,3192.8,3192.5,0.818]
[1720965517001,3.53352446,3192.8,3192.5,0.818]
[1720965518391,5.91592446,3192.8,3192.5,0.818]
[1720965520244,3.2021904,3192.8,3192.5,0.818]
[1720965520536,5.91599777,3192.8,3192.5,0.818]
[1720965520721,6.75815355,3192.8,3192.5,0.818]
[1720965523240,9.26379355,3192.8,3192.5,0.818]
[1720965523612,9.2647073,3192.8,3192.5,0.818]
[1720965525242,3.53451152,3192.8,3192.7,0.793]
[1720965525400,0.8197904,3192.8,3192.7,0.793]
[1720965537266,0.8197904,3192.8,3192.7,8.09152]
[1720965537570,0.49169939,3192.8,3192.7,8.09152]
[1720965537712,1.9693091,3193.0,3192.9,7.2982]
[1720965538041,1.9693091,3193.0,3192.9,8.0912]
[1720965538549,1.9693091,3193.1,3193.0,5.01096]
[1720965538755,1.9693091,3193.1,3193.0,6.613066]
[1720965539053,1.9693091,3193.1,3193.0,8.900166]
[1720965540258,0.32809897,3193.4,3193.2,2.50527]
[1720965540427,2.62343447,3193.4,3193.3,0.793]
[1720965540828,0.32809897,3193.4,3193.3,0.793]
[1720965541866,2.62298793,3193.4,3193.3,0.793]
[1720965542863,2.62261547,3193.4,3193.3,0.793]
[1720965544029,0.32809897,3193.4,3193.3,0.793]
[1720965546442,0.32809897,3193.4,3193.3,3.29824]
[1720965552828,2.29274505,3193.4,3193.3,3.29824]
[1720965555914,2.2924979,3193.4,3193.3,3.29824]
[1720965557341,0.49160537,3193.5,3193.3,3.878591]
[1720965558439,0.49160537,3193.5,3193.4,2.50516]
[1720965564446,0.49160537,3193.5,3193.4,4.78036]
[1720965564650,2.12831106,3193.5,3193.4,7.28552]
[1720965564850,2.12831106,3193.5,3193.4,8.1514071]
[1720965564851,0.49160537,3193.5,3193.4,8.1514071]
[1720965565154,1.80099428,3193.5,3193.4,8.1514071]
[1720965569123,1.30938891,3193.5,3193.4,8.1264071]
[1720965569713,1.63642861,3193.6,3193.5,2.50508]
[1720965569918,1.63642861,3193.6,3193.5,3.29808]
[1720965570318,1.63642861,3193.6,3193.5,5.80316]
[1720965572314,1.63662216,3193.6,3193.5,2.50508]
[1720965572663,1.63662216,3193.6,3193.5,3.29808]
[1720965573341,2.29203568,3193.8,3193.5,3.29808]
[1720965573548,2.29203568,3193.8,3193.7,0.793]
[1720965575737,2.29254425,3193.8,3193.7,0.793]
[1720965577472,0.32808908,3193.8,3193.7,0.793]
[1720965577976,2.29297399,3193.8,3193.7,0.793]
[1720965578543,0.32808908,3193.8,3193.7,0.793]
[1720965579307,0.81964119,3193.8,3193.7,0.793]
[1720965580881,3.82330414,3193.8,3193.4,0.16]
[1720965581102,1.96585985,3193.5,3193.4,0.16]
[1720965581442,2.462,3193.5,3193.4,0.953]
[1720965582605,2.462,3193.5,3193.4,0.16]
[1720965582813,7.26107488,3193.5,3193.4,0.16]
[1720965583108,4.96708,3193.5,3193.4,0.16]
[1720965583305,5.98526715,3193.5,3193.4,0.16]
[1720965587703,4.96708,3193.5,3193.4,0.16]
[1720965601149,7.55046052,3193.5,3193.4,0.16]
[1720965601442,8.02216,3193.5,3193.4,0.16]
[1720965602422,10.72982625,3193.5,3193.4,0.16]
[1720965602636,8.02216,3193.5,3193.4,0.16]
[1720965602825,9.39787502,3193.5,3193.4,0.16]
[1720965603159,12.10554523,3193.5,3193.4,0.16]
[1720965603347,9.05046523,3193.5,3193.4,0.16]
[1720965605233,6.34279502,3193.5,3193.4,0.16]
[1720965609053,8.84787502,3193.5,3193.4,0.16]
[1720965610150,6.34279502,3193.5,3193.4,0.16]
[1720965610329,8.84787502,3193.5,3193.4,0.16]
[1720965611948,6.34279502,3193.5,3193.4,0.16]
[1720965613726,2.70466272,3193.7,3193.4,0.16]
[1720965613934,5.50503,3193.6,3193.4,0.16]
[1720965615460,3.0,3193.6,3193.4,0.16]
[1720965616670,2.50501,3193.6,3193.4,0.16]
[1720965616949,6.03017821,3193.6,3193.4,0.16]
[1720965617122,7.43450329,3193.6,3193.4,0.16]
[1720965618047,2.50508,3193.5,3193.4,0.16]
[1720965619656,6.03076301,3193.6,3193.4,0.16]
[1720965619852,3.52575301,3193.6,3193.4,0.16]
[1720965620157,4.93498,3193.5,3193.4,0.16]
[1720965620327,8.79488914,3193.5,3193.4,0.16]
[1720965620522,11.29996914,3193.5,3193.4,0.16]
[1720965623025,11.30057304,3193.5,3193.4,0.16]
[1720965624454,8.59396245,3193.5,3193.4,0.16]
[1720965628662,11.82397263,3193.5,3193.4,0.16]
[1720965630090,14.82397263,3193.5,3193.4,0.16]
[1720965630265,15.39597988,3193.5,3193.4,0.16]
[1720965630460,12.14396245,3193.5,3193.4,0.16]
[1720965636353,15.39539519,3193.5,3193.4,0.16]
[1720965636763,12.14396245,3193.5,3193.4,0.16]
[1720965651523,9.16406245,3193.5,3193.4,0.16]
[1720965652642,9.16406245,3193.5,3193.4,0.15652883]
[1720965656303,11.99846245,3193.5,3193.4,0.15652883]
[1720965660518,11.44846245,3193.5,3193.4,0.15652883]
[1720965661542,5.50508,3193.5,3193.4,0.15652883]
[1720965667933,0.81974632,3193.6,3193.4,0.15652883]
[1720965668257,0.81974632,3193.6,3193.5,2.2841]
[1720965673374,3.52921149,3193.6,3193.5,2.2841]
[1720965673572,0.81974632,3193.6,3193.4,0.15652883]
[1720965673879,2.70951473,3193.5,3193.4,0.15652883]
[1720965674076,3.32481632,3193.6,3193.4,0.15652883]
[1720965674447,5.82989632,3193.6,3193.4,0.15652883]
[1720965674776,5.2140954,3193.5,3193.4,0.15652883]
[1720965677190,6.06797457,3193.5,3193.4,0.15652883]
[1720965677387,5.86403917,3193.5,3193.4,0.15652883]
[1720965677571,8.86403917,3193.5,3193.4,0.15652883]
[1720965677756,12.11805884,3193.5,3193.4,0.15652883]
[1720965683984,12.66805884,3193.5,3193.4,0.15652883]
[1720965685084,15.17313884,3193.5,3193.4,0.15652883]
[1720965689405,14.62313884,3193.5,3193.4,0.15652883]
[1720965689558,11.36911917,3193.5,3193.4,0.15652883]
[1720965690178,15.16737108,3193.5,3193.4,0.15652883]
[1720965690462,15.16710746,3193.5,3193.4,0.15652883]
[1720965690794,11.91911917,3193.5,3193.4,0.15652883]
[1720965692194,18.28079917,3193.5,3193.4,0.15652883]
[1720965692417,2.50563,3192.8,3192.7,6.75418765]
[1720965693073,5.33937327,3192.8,3192.7,6.75418765]
[1720965693898,5.83113228,3192.8,3192.7,6.75418765]
[1720965694103,8.5354617,3192.8,3192.7,6.75418765]
[1720965694477,8.53545104,3192.8,3192.7,6.75418765]
[1720965694706,2.50587,3192.5,3192.4,19.47]
[1720965694868,2.50596,3192.4,3192.2,3.337]
[1720965697399,1.96152851,3192.3,3192.2,3.337]
[1720965697783,2.50596,3192.4,3192.2,3.337]
[1720965698169,2.28839964,3192.5,3192.2,3.337]
[1720965698369,1.96154856,3192.3,3192.2,3.337]
[1720965700812,1.96154856,3192.3,3192.2,4.34668011]
[1720965700966,3.32554228,3192.8,3192.2,3.337]
[1720965701171,2.2881684,3192.7,3192.5,0.793]
[1720965701603,2.2881684,3192.7,3192.6,2.388]
[1720965702098,2.2881684,3192.7,3192.5,0.793]
[1720965702408,2.2881684,3192.6,3192.4,2.388]